Cogmind - Beta 9.2 @@@ ROGUE MODE // 2019.12.04 @ 17:24:36 Player: Fleshy Vegetable Bird Result: Destroyed by P-70 Sage with Tesla Rifle Performance ------------- Evolutions (3) 1500 Regions Visited (5) 1000 Robots Destroyed (88) 440 Value Destroyed (1913) 1913 Prototype IDs (10) 200 Alien Tech Used (0) 0 Bonus (521) 521 TOTAL SCORE: 5574 Bonus ------- High Alert Combat Kills 187 Follower Combat Kills 334 Cogmind --------- Core Integrity 0/700 Matter 102/300 Energy 98/100 System Corruption 6% Temperature Cool (0) Movement Core (50) Location -7/Factory Parts ------- > --- POWER (1) -------- (None) > --- PROPULSION (3) --- (None) > --- UTILITY (7) ------ Improved Signal Interpreter Hacking Suite Hacking Suite > --- WEAPON (2) ------- Axe > --- INVENTORY (4) ---- Improved ECM Suite EM Pulse Cannon Heavy Particle Cannon Peak State ------------ > --- POWER ------------ Cooled Ion Engine > --- PROPULSION ------- Wheel Armored Wheel Armored Wheel > --- UTILITY ---------- Large Storage Unit Large Storage Unit Experimental Sensor Array Improved Signal Interpreter Hacking Suite Hacking Suite System Shield > --- WEAPON ----------- Precision Assault Rifle Gauss Cannon > --- INVENTORY -------- Light Nuclear Core Micro Nuclear Core VTOL Module Cesium-ion Thruster Cesium-ion Thruster Cesium-ion Thruster Advanced Weight Redist. System Transmission Jammer Insulated Plating Hacking Suite Beamcaster EM Pulse Cannon Heavy Particle Cannon Plasma Cannon Improved Grenade Launcher Axe [Rating: 41] Favorites ----------- Power Cooled Ion Engine Engine Cooled Ion Engine Power Core Micro Nuclear Core Propulsion Wheel Treads Light Treads Wheel Wheel Flight Unit Cesium-ion Thruster Utility Large Storage Unit Device Improved Heat Sink Storage Large Storage Unit Processor Improved Signal Interpreter Hackware System Shield Protection Light Armor Plating Weapon Axe Energy Gun Particle Gun Energy Cannon EM Pulse Cannon Ballistic Gun Light Assault Rifle Ballistic Cannon Gauss Cannon Launcher Rocket Launcher Slashing Weapon Axe Build | -11 -10 -10 -9 -8 -7 ------- Run | Scr Mat Min Mat Mat Fac Slots Evolved 6 | . . . 2 2 2 Power . | . . . . . . Propulsion 1 | . . . . 1 . Utility 5 | . . . 2 1 2 Weapon . | . . . . . . Parts Attached 93 | 7 1 8 31 19 27 Power 8 | 1 . 1 3 1 2 Engine 6 | 1 . 1 3 1 . Core 2 | . . . . . 2 Reactor . | . . . . . . Propulsion 24 | 4 . 2 7 5 6 Treads 1 | . . . . 1 . Leg . | . . . . . . Wheel 18 | 4 . 2 6 4 2 Hover . | . . . . . . Flight 5 | . . . 1 . 4 Utility 24 | 1 . 1 10 4 8 Device 7 | . . . 3 1 3 Storage 5 | 1 . . 4 . . Processor 1 | . . . . . 1 Hackware 4 | . . . 1 1 2 Protection 7 | . . 1 2 2 2 Artifact . | . . . . . . Weapon 37 | 1 1 4 11 9 11 Energy Gun 13 | 1 . 1 6 4 1 Energy Cannon 1 | . . . . . 1 Ballistic Gun 8 | . 1 3 3 . 1 Ballistic Cannon 3 | . . . . . 3 Launcher 7 | . . . 2 4 1 Special Weapon . | . . . . . . Impact Weapon . | . . . . . . Slashing Weapon 5 | . . . . 1 4 Piercing Weapon . | . . . . . . Special Melee Weapon . | . . . . . . Unidentified Prototypes 6 | . . . 5 . 1 Parts Lost 33 | . . 5 3 9 16 Power 4 | . . 1 . 1 2 Propulsion 15 | . . 2 1 5 7 Utility 6 | . . . 2 . 4 Weapon 8 | . . 2 . 3 3 Highest Loss Streak 16 | . . 3 1 3 16 Average Slot Usage (%) 93 | . 75 93 97 86 94 Engine 9 | . 14 13 11 8 6 Wheel 20 | . 28 27 20 14 20 Device 7 | . . . 10 4 9 Storage 15 | . 14 14 14 18 14 Processor 2 | . . . . . 7 Hackware 12 | . . . 10 14 19 Protection 5 | . . 10 6 8 . Energy Gun 7 | . 14 8 11 9 . Ballistic Gun 6 | . 4 18 7 . 1 Launcher 1 | . . . 2 4 . Slashing Weapon 2 | . . . . 2 5 Naked Turns . | . . . . . . Heaviest Build 56 | 11 12 16 46 56 53 Greatest Support 42 | 32 20 26 26 42 41 Greatest Overweight (x) 5 | . . . 2 5 1 Average Overweight (x) . | . . . . 1 . Largest Inventory Capacity 16 | 6 6 6 16 16 16 Average Capacity 11 | 5 6 6 7 16 15 Most Carried 16 | 5 5 6 12 16 16 Average Carried 10 | 3 4 5 6 15 15 Final Capacity 16 | 6 6 6 16 16 4 Final Carried 16 | 5 4 6 12 16 3 Class Distribution -------------------- 40% | Hacker-Mutant 38% | Mutant 21% | Scavenger-Mutant Dominant Class ---------------- Mutant | -10/Materials Scavenger-Mutant | -10/Mines Mutant | -9/Materials Hacker-Mutant | -8/Materials Hacker-Mutant | -7/Factory Resources | -11 -10 -10 -9 -8 -7 ----------- Run | Scr Mat Min Mat Mat Fac Matter Collected 1474 | 270 11 101 655 372 65 Remotely . | . . . . . . Salvage Created 2489 | 186 . 200 983 899 221 Parts 159 | 9 . 17 76 45 12 Haulers Intercepted 5 | . . . 4 . 1 Recyclers Shooed . | . . . . . . Parts Field Recycled . | . . . . . . Retrieved Matter . | . . . . . . Parts Self-Destructed . | . . . . . . Prevented . | . . . . . . Kills | -11 -10 -10 -9 -8 -7 ------- Run | Scr Mat Min Mat Mat Fac Combat Hostiles Destroyed 54 | . . 4 25 21 4 Melee 2 | . . . . 2 . Guns 26 | . . 4 15 6 1 AOE 26 | . . . 10 13 3 Classes Destroyed 13 | 3 . 2 6 1 1 Worker 4 | 2 . . 1 . 1 Builder 4 | . . . 3 1 . Tunneler 6 | 3 . 1 1 . 1 Hauler 5 | . . . 4 . 1 Recycler 7 | 1 . 1 1 4 . Operator 6 | . . . 3 3 . Watcher 2 | . . . 1 1 . Swarmer 23 | . . 2 11 10 . Grunt 22 | . . 2 9 8 3 Brawler 1 | . . . . 1 . Duelist 1 | . . . 1 . . Sentry 6 | . . . 4 2 . Programmer 1 | . . . . . 1 Best Kill Streak 10 | 6 . 3 10 5 2 Combat Bots Only 8 | . . 2 8 4 2 Max Kills in Single Turn 4 | 1 . 1 4 3 2 Gunslinging 1 | . . . . 1 . Exploded 3 | . . . 2 3 2 Melee 1 | . . . . 1 . Uniques/NPCs Destroyed . | . . . . . . Combat | -11 -10 -10 -9 -8 -7 -------- Run | Scr Mat Min Mat Mat Fac Damage Taken 4406 | . 70 451 863 905 2117 Core 1090 | . . 87 147 141 715 Absorbed by Shields . | . . . . . . Core Remaining (%) 75 | 100 . 65 63 74 . Volleys Fired 211 | 28 1 32 91 49 10 Largest 2 | 1 2 2 2 2 2 Hottest 111 | 50 70 85 101 85 111 Shots Fired 333 | 28 2 56 154 74 19 Gun 291 | 28 2 56 139 56 10 Cannon 7 | . . . . . 7 Launcher 35 | . . . 15 18 2 Special . | . . . . . . Kinetic 109 | . 1 39 59 . 10 Thermal 103 | 28 1 17 54 . 3 Explosive 35 | . . . 15 18 2 Electromagnetic 86 | . . . 26 56 4 Robot Hit Streak 11 | 11 6 8 10 8 5 Robot Miss Streak 5 | 1 . 3 5 4 3 Penetration Max . | . . . . . . Secondary Targets 3 | . . 1 1 1 . Max Gunslinging Chain 1 | . . 1 1 1 . Shots Hit Robots 221 | 21 2 32 103 46 17 Core Hits 148 | 7 1 11 61 55 13 Critical Hits 3 | . . . 1 . 2 Critical Kills 1 | . . . . . 1 Critical Parts Destroyed 2 | . . . 1 . 1 Melee Attacks 45 | . . . . 5 40 Impact . | . . . . . . Slashing 45 | . . . . 5 40 Piercing . | . . . . . . Sneak Attacks 5 | . . . . 1 4 Combat Hostiles 1 | . . . . 1 . Follow-up Attacks . | . . . . . . Damage Inflicted 6817 | 261 20 298 2673 2378 1187 Guns 2920 | 261 20 298 1553 586 202 Cannons 90 | . . . . . 90 Explosions 3162 | . . . 1120 1606 436 Melee 638 | . . . . 186 452 Ramming 7 | . . . . . 7 Kinetic 1034 | . 7 158 657 . 212 Thermal 1441 | 261 13 140 566 118 343 Explosive 2781 | . . . 1120 1488 173 Electromagnetic 916 | . . . 330 586 . Impact . | . . . . . . Slashing 638 | . . . . 186 452 Piercing . | . . . . . . Highest Corruption 6 | . . . 6 . 6 Average Corruption 3 | . . . 5 . 2 Corruption Purged . | . . . . . . Effects 27 | . . . 17 . 10 Message Errors 11 | . . . 6 . 5 Matter Fused 4 | . . . 4 . . Heat Flow Errors 3 | . . . 1 . 2 Energy Discharges 3 | . . . 1 . 2 Data Loss (minor) 2 | . . . 2 . . Data Loss (major) 1 | . . . 1 . . Targeting Errors 3 | . . . 2 . 1 Overload Shots . | . . . . . . Overflow Damage 284 | . . . 62 102 120 Projectiles . | . . . . . . Explosions 207 | . . . 62 102 43 Melee 77 | . . . . . 77 Knockbacks . | . . . . . . Impact . | . . . . . . Kinetic . | . . . . . . Secondary . | . . . . . . Self-Inflicted Damage 328 | . . . 166 93 69 Shots 14 | . . . 9 3 2 Rammed 1 | . . . . . 1 Targets Rammed 1 | . . . . . 1 Kicked . | . . . . . . Crushed . | . . . . . . Highest Temperature 224 | 170 30 110 90 102 224 Average Temperature 55 | 62 18 41 18 35 117 Received Heat Transfer 1497 | . . 141 210 378 768 Siege Activations . | . . . . . . Robots Corrupted . | . . . . . . Combat Hostiles . | . . . . . . Parts Fried 4 | . . . 4 . . Impact Corruptions . | . . . . . . Robots Melted . | . . . . . . Combat Hostiles . | . . . . . . Parts Melted 6 | 1 . 2 2 1 . Heat Transferred 2877 | 777 37 407 1295 100 261 Parts Sabotaged . | . . . . . . Parts Stolen . | . . . . . . Parts Stripped . | . . . . . . Power Chain Reactions 3 | . . . . 3 . Missiles Intercepted . | . . . . . . Alert | -11 -10 -10 -9 -8 -7 ------- Run | Scr Mat Min Mat Mat Fac Peak Influence 733 | 30 19 298 733 695 304 Average Influence 254 | 8 19 111 355 464 109 Maximum Alert Level 3 | . . 1 3 2 1 Low Security (%) 48 | 100 100 89 31 . 72 Level 1 24 | . . 10 30 24 27 Level 2 22 | . . . 25 75 . Level 3 4 | . . . 12 . . Level 4 . | . . . . . . Level 5 . | . . . . . . High Security . | . . . . . . Max Security . | . . . . . . Squads Dispatched 17 | . 1 1 4 6 5 Investigation 4 | . . 1 1 . 2 Extermination 2 | . . . . . 2 Reinforcement 8 | . 1 . 3 3 1 Assault . | . . . . . . Garrison 3 | . . . . 3 . Intercept . | . . . . . . Construction Impeded 1 | . . . . 1 . Haulers Reinforced . | . . . . . . Stealth | -11 -10 -10 -9 -8 -7 --------- Run | Scr Mat Min Mat Mat Fac Distress Signals 8 | . . . 4 4 . Communications Jammed . | . . . . . . Distress Signals . | . . . . . . Times Spotted 130 | . 5 12 50 37 26 Peak Tracking Total 12 | . 5 3 5 5 12 Tactical Retreats 10 | . . 1 2 3 4 Traps | -11 -10 -10 -9 -8 -7 ------- Run | Scr Mat Min Mat Mat Fac Traps Triggered 3 | . 1 . 2 . . Indirectly . | . . . . . . Trap Hack Attempts . | . . . . . . Triggered . | . . . . . . Disarmed . | . . . . . . Reprogrammed . | . . . . . . Reused . | . . . . . . Traps Extracted . | . . . . . . Installed . | . . . . . . Triggered . | . . . . . . Machines | -11 -10 -10 -9 -8 -7 ---------- Run | Scr Mat Min Mat Mat Fac Machines Disabled 10 | . . 3 3 3 1 Max in Single Turn 1 | . . 1 1 1 1 Machines Sabotaged . | . . . . . . Garrisons Compromised . | . . . . . . Overloaded Fab Kills . | . . . . . . Fab Network Shutdowns . | . . . . . . Hacking | -11 -10 -10 -9 -8 -7 --------- Run | Scr Mat Min Mat Mat Fac Machines Accessed 29 | . . 1 10 7 11 Terminals 23 | . . . 8 6 9 Fabricators 1 | . . . . . 1 Repair Stations 1 | . . . 1 . . Recycling Units . | . . . . . . Scanalyzers 3 | . . . 1 1 1 Garrison Access . | . . . . . . Total Hacks 106 | . . 1 38 33 34 Successful 56 | . . 1 14 23 18 Failed 49 | . . . 24 10 15 Catastrophic 6 | . . . 1 1 4 Database Lockouts 1 | . . . . . 1 Manual 77 | . . . 30 20 27 Terminals 83 | . . . 31 25 27 Fabricators 3 | . . . . . 3 Repair Stations 4 | . . . 4 . . Recycling Units . | . . . . . . Scanalyzers 15 | . . . 3 8 4 Garrison Access . | . . . . . . Terminal Hacks 15 | . . 1 3 7 4 Record 1 | . . . . 1 . Part Schematic 3 | . . . 1 . 2 Prototype ID Bank 2 | . . . . 2 . Open Door 1 | . . 1 . . . Terminal Index 3 | . . . 1 1 1 Unreport Threat 2 | . . . . 2 . Recall Extermination 1 | . . . . . 1 Recall Reinforcements 1 | . . . . 1 . Zone Layout 1 | . . . 1 . . Fabricator Hacks 2 | . . . . . 2 Load Schematic 1 | . . . . . 1 Build 1 | . . . . . 1 Repair Station Hacks 2 | . . . 2 . . Scan Component 1 | . . . 1 . . Repair 1 | . . . 1 . . Recycling Unit Hacks . | . . . . . . Scanalyzer 14 | . . . 2 8 4 Insert Component 7 | . . . 1 4 2 Analyze 7 | . . . 1 4 2 Garrison Access Hacks . | . . . . . . Unauthorized Hacks 70 | . . . 28 21 21 Terminals 23 | . . . 7 8 8 Track 5 | . . . 3 2 . Assimilate 4 | . . . . 1 3 Botnet 10 | . . . 3 4 3 Detonate 1 | . . . . . 1 Disrupt 1 | . . . . . 1 Operators 2 | . . . 1 1 . Fabricators . | . . . . . . Repair Stations . | . . . . . . Recycling Units . | . . . . . . Scanalyzers . | . . . . . . Garrison Access . | . . . . . . Data Cores Recovered 2 | . . . 1 1 . Used . | . . . . . . Hacking Detections 27 | . . . 10 6 11 Full Trace Events 1 | . . . . . 1 Feedback Events . | . . . . . . Feedback Blocked . | . . . . . . Robot Schematics Acquired . | . . . . . . Robots Built . | . . . . . . Matter . | . . . . . . Time . | . . . . . . Total Robot Build Rating . | . . . . . . Part Schematics Acquired 10 | . . . 2 4 4 Parts Built 2 | . . . . . 2 Matter 146 | . . . . . 146 Time 24 | . . . . . 24 Total Part Build Rating 6 | . . . . . 6 Parts Repaired 1 | . . . 1 . . Time 80 | . . . 80 . . Parts Recycled . | . . . . . . Recycled Matter . | . . . . . . Retrieved Matter . | . . . . . . Retrieved Components . | . . . . . . Parts Scanalyzed 7 | . . . 1 4 2 Part Schematics Acquired 7 | . . . 1 4 2 Parts Damaged . | . . . . . . Bothacking | -11 -10 -10 -9 -8 -7 ------------ Run | Scr Mat Min Mat Mat Fac Used RIF Installer . | . . . . . . Robots Hacked . | . . . . . . Non-combat . | . . . . . . Combat . | . . . . . . Robot Hacks Applied . | . . . . . . Relay Couplers Released . | . . . . . . Robots Rewired . | . . . . . . Allies Hacked . | . . . . . . Hacks Repelled 1 | . . . . . 1 Allies | -11 -10 -10 -9 -8 -7 -------- Run | Scr Mat Min Mat Mat Fac Total Allies 6 | . . 4 . . 2 Largest Group 4 | . . 4 4 . 2 Highest-Rated Group 71 | . . 71 71 . 52 Highest-Rated Ally 31 | . . 31 31 . 26 Total Orders 4 | . . . . . 4 GOTO 2 | . . . . . 2 FOLLOW 2 | . . . . . 2 Ally Attacks 63 | . . 14 49 . . Total Damage 848 | . . 160 688 . . Kills 19 | . . 6 13 . . Allies Corrupted 1 | . . . . . 1 Allies Melted . | . . . . . . Intel | -11 -10 -10 -9 -8 -7 ------- Run | Scr Mat Min Mat Mat Fac Robot Analysis Total . | . . . . . . Derelict Logs Recovered 1 | . . 1 . . . Drone Launches . | . . . . . . Drone Recoveries . | . . . . . . Exploration | -11 -10 -10 -9 -8 -7 ------------- Run | Scr Mat Min Mat Mat Fac Turns Passed 4752 | 137 61 701 1565 910 1378 Spaces Moved 3627 | 69 72 640 1063 553 1230 Core 96 | 9 . . . . 87 Treads 94 | . . . . 94 . Legs . | . . . . . . Wheels 3437 | 60 72 640 1063 459 1143 Hover . | . . . . . . Flight . | . . . . . . Fastest Speed 50 | 50 80 80 80 95 50 Average Speed 94 | 86 80 89 88 123 91 Slowest Speed 200 | 100 80 90 105 200 100 Overloaded Moves . | . . . . . . Propulsion Burnouts . | . . . . . . Robots Hopped . | . . . . . . Cave-ins Triggered . | . . . . . . Exploration Rate (%) 47 | 6 26 96 85 39 35 Regions Visited 5 Branch Regions 1 Pre-discovered Areas 2 | . . 2 . . . Known Exits Taken . | . . . . . . Unknown Exits Taken 5 | 1 1 1 1 1 . Scrap Searched 2 | . . 2 . . . Spaces Dug 51 | . . . 15 1 35 Terrain Destroyed 361 | . . . 121 166 74 Melee 36 | . . . . 1 35 Projectile . | . . . . . . AOE 325 | . . . 121 165 39 Actions | -11 -10 -10 -9 -8 -7 --------- Run | Scr Mat Min Mat Mat Fac Total 4537 | 117 73 726 1538 695 1388 Wait 411 | . . 25 296 36 54 Move 3622 | 68 71 639 1062 552 1230 Hop . | . . . . . . Pick Up 99 | 12 . 15 35 24 13 Fast Attach . | . . . . . . Attach 41 | 5 1 6 6 10 13 Detach . | . . . . . . Swap 52 | 2 . 2 25 9 14 Drop 55 | 2 . 7 23 10 13 Fire 211 | 28 1 32 91 49 10 Melee 45 | . . . . 5 40 Ram 1 | . . . . . 1 Kick . | . . . . . . Crush . | . . . . . . Escape Stasis . | . . . . . . Rewire . | . . . . . . Trap . | . . . . . . Miscellaneous . | . . . . . . Route ------- -11/Scrapyard -10/Materials -10/Mines (discovered 2 exits: *Mat x2) -9/Materials (discovered 4 exits: *Mat x2 / [*Min x2]) -8/Materials -7/Factory History --------- Turn | Location | Event 14 | -11/Scrapyard | Discovered new exit (range 15) 138 | -11/Scrapyard | Entered Materials 186 | -10/Materials | Discovered new exit (range 9) 199 | -10/Materials | Entered Mines 215 | -10/Mines | Met a Derelict bent on vengeance 315 | -10/Mines | Build established: Mutant 327 | -10/Mines | Lost 3 parts (1p1n1w) 364 | -10/Mines | Escorted by a lone wolf Derelict 384 | -10/Mines | Learned location of Storage (-7) 398 | -10/Mines | Found a damaged Exp. Sensor Array with a note attached 400 | -10/Mines | Found Prototype Device 424 | -10/Mines | Assisted by bots powering up and referring to "LRC-V3" 557 | -10/Mines | Discovered new exit (range 6) 558 | -10/Mines | Learned location of Recycling (-7) 789 | -10/Mines | Discovered new exit (range 11) 810 | -10/Mines | Build established: Scavenger-Mutant 838 | -10/Mines | Met a Derelict shopkeep closing up shop 900 | -10/Mines | Entered Materials 900 | -9/Materials | Accompanied by 4 allies 900 | -9/Materials | Evolved 2 slots: Utility x2 985 | -9/Materials | Identified Exp. Sensor Array 1068 | -9/Materials | Repaired Exp. Sensor Array 1151 | -9/Materials | Discovered new exit (range 7) 1737 | -9/Materials | Discovered new exit (range 16) 1739 | -9/Materials | Build established: Mutant 1940 | -9/Materials | Destroyed 8 combat bots 2253 | -9/Materials | Discovered new exit (range 12) 2449 | -9/Materials | Discovered new exit (range 15) 2465 | -9/Materials | Entered another Materials area 2465 | -8/Materials | Evolved 2 slots: Propulsion x1, Utility x1 2642 | -8/Materials | Lost 3 parts (1p1n1w) 2766 | -8/Materials | Garrison activated, responded to threat 3145 | -8/Materials | Build established: Hacker-Mutant 3161 | -8/Materials | Discovered new exit (range 11) 3375 | -8/Materials | Entered Factory 3375 | -7/Factory | Evolved 2 slots: Utility x2 3774 | -7/Factory | Fabricated Cesium-ion Thruster? 4155 | -7/Factory | Central database locked down 4704 | -7/Factory | Core integrity fell below 50% 4709 | -7/Factory | Core integrity fell below 20% 4736 | -7/Factory | Lost 16 parts (2p7n4u3w) 4753 | -7/Factory | Destroyed by P-70 Sage with Tesla Rifle Last Messages --------------- 04703_ Dropped Lrg. Storage Unit. 04703_ System Shield destroyed. 04704_ VTOL Module destroyed. 04704_ Cesium-ion Thruster destroyed. 04704_ U-05 Engineer lays Concrete. 04704_ Dropped Lrg. Storage Unit. 04705_ Dropped Mic. Nuclear Core. 04705_ Hacking Suite destroyed. 04706_ U-05 Engineer lays Concrete. 04706_ Slammed into G-47 Trooper. 04706_ Destabilizing: System interference. 04706_ Imp. Signal Interpreter temporarily disabled. 04707_ U-05 Engineer builds a Wall. 04707_ U-05 Engineer lays Concrete. 04709_ U-05 Engineer builds a Wall. 04709_ U-05 Engineer lays Concrete. 04720_ G-47 Trooper destroyed. 04727_ Connecting with Terminal... 04735_ ,M5FTYY|/RECOYRQ0&TS=ITMKC 04735_ Door malfunctions. Map ----- +----------------------------------------------------+ | ???????????????????????????????????????# | | ???????????????????????????????????????# """" | | ???????????????????????????????????????# """" | | ???????????????????????????????????????# """" | | ???????????????????????????????????????# | | ???????????????????????????????????????# | | ????????????????????????????#########??# ### | | ????????????????????????????# #??# #?# | | ????????????????????????????# """"" #### #?# | | ????????????????????????????# ""T"" # #?# | | ??????????????????????? ?# # #?# | | ?????????????????????# ?######+## #?# | | ????????????????????## ?# + #?#" | | ????????????????????# ?# # #####+#?#" | | ????????????????????# ?# # #??????? " "" | | ???????????????????? ?# ?# #??????#""""%"" | | ????????????????????? ?# ?# #??????# ! " | | ????????????????????? ?###??# #??????# " | | ?????????????????????? ??#####/######## " | | ?????????????????????? ??# """" " " | | ??????????????????????# #??# ""S"" " # | | ??????????????????????# k #??# "" "" #! # | | ??????????????????????# #??# ######## | | ??????????????????????#w #??# """ ## !!= ] | | ??????????????????????# #??# """"" ## !!= | | ??????????????????????# @#??# """"" ## !== ] | | ??????????????????????# #??# ## | | ??????????????????????# #??# """ #### ]! | | ??????????????????????# #??# """"" #?# !!! | | ??????????????????????# #??# """"" ### ** | | ??????????????????????# #??# #[ | | ????################### p########/######## | | ???# + g #?????# """ | | ???# # #?????# """"" | | ???# # #?????# """"" | | ???# ! # ###+########?????# | | ???# # # ???????????# """ | | ???# """ """ """ """ + + """ ?????????# """"" | | ??????""" """ """ """ #### """ ""???????# "?""" | | ???????"" """ """ """ #??# """ """??????????? | | ??????????#############??# ???????????### | | ??????????????????????????#######?#??????????????? | | | | | | | | | | | | | | | | | +----------------------------------------------------+ Best States ------------- Heat Dissipation 45 Energy Generation 15 Energy Capacity 280 Matter Stores 300 Matter Capacity 300 Sight Range 16 Robot Scan Range 30 Terrain Scan Density 10 Additional Mass Support 9 Armor Coverage 225 Resistance: EM 15 Evasion (%) 50 Recoil Reduction 1 Offensive Hacking 20 Defensive Hacking 10 Item Schematics ----------------- Exp. Sensor Array | -9/Materials | Scanalyzed Imp. Signal Interpreter | -9/Materials | Hacked Hacking Suite | -8/Materials | Scanalyzed Insulated Plating | -8/Materials | Scanalyzed Adv. Weight Redist. System | -8/Materials | Scanalyzed Lgt. Deuterium Engine | -8/Materials | Scanalyzed VTOL Module | -7/Factory | Scanalyzed Cesium-ion Thruster | -7/Factory | Scanalyzed System Shield | -7/Factory | Hacked Lrn. Terrain Scanner | -7/Factory | Hacked Robot Schematics ------------------ None Fabricated ------------ Cesium-ion Thruster | x2 | -7/Factory Alien Tech Used ----------------- None Achievements -------------- None Challenges ------------ None Game ------ Seed BurstManeuveringRailgun Manual? 0 Play Time 00:50:42 Cumulative 210.3 hours Start 2019.12.04 @ 16:35:26 End 2019.12.04 @ 17:24:36 Sessions 1 Manual Loads 0 Difficulty Rogue Special Mode None Game No. 282 Rogue 282 Adventurer 0 Explorer 0 Win Type - Total 2 Types 1/0/0/1/0/0/0 Lore% 53 Gallery% 75 Achievement% 52 Wizard Run 0 Options --------- ASCII 0 Keyboard 0 Movement Numpad Keybinds 0 Fullscreen 1 Font 16/Terminus Map View 75x55 Tactical HUD 1 Map Filters NONE Filters NONE Steam 1 RUN: cf772a37-1895-45bc-8491-25833d61daf4